bitfinex-derivatives/quotes_SOLF0:USTF0_20250714
["timestamp","ask_amount","ask_price","bid_price","bid_amount"]
[1752459556468,7.0482318,163.5,163.49,3.52]
[1752459556768,5.15099129,163.5,163.49,3.52]
[1752459557073,5.15099129,163.5,163.49,5.41724051]
[1752459557277,5.15099129,163.51,163.5,3.52]
[1752459557863,5.15099129,163.51,163.5,5.41724051]
[1752459558272,7.32099129,163.52,163.5,5.41724051]
[1752459558470,7.32099129,163.52,163.51,3.52]
[1752459558668,13.43439129,163.52,163.51,3.52]
[1752459563073,8.2834,163.52,163.51,3.52]
[1752459563972,8.2837,163.51,163.5,0.03901409]
[1752459564181,10.18094051,163.51,163.5,0.03901409]
[1752459565674,10.18094051,163.51,163.5,3.55901409]
[1752459570079,6.1134,163.52,163.5,3.55901409]
[1752459570278,8.2734,163.52,163.5,3.55901409]
[1752459570480,4.05724051,163.52,163.5,3.55901409]
[1752459572073,6.1137,163.51,163.5,3.55901409]
[1752459572480,8.2737,163.51,163.5,3.55901409]
[1752459573186,6.1137,163.51,163.5,3.55901409]
[1752459573579,8.01054051,163.52,163.5,3.55901409]
[1752459573780,6.1133,163.52,163.5,3.55901409]
[1752459573980,8.2733,163.52,163.5,3.55901409]
[1752459574582,6.1137,163.51,163.5,3.55901409]
[1752459574983,8.2737,163.51,163.5,3.55901409]
[1752459577081,10.17094051,163.51,163.5,3.55901409]
[1752459578376,8.2737,163.51,163.5,3.55901409]
[1752459580582,6.1137,163.51,163.5,3.55901409]
[1752459581585,8.2737,163.51,163.5,3.55901409]
[1752459582587,6.1137,163.51,163.5,3.55901409]
[1752459583091,10.17064051,163.52,163.5,3.55901409]
[1752459583288,6.1134,163.52,163.5,3.55901409]
[1752459584692,8.2734,163.52,163.5,3.55901409]
[1752459585489,6.1134,163.52,163.5,3.55901409]
[1752459586383,8.2734,163.52,163.5,3.55901409]
[1752459586690,11.26399129,163.53,163.5,5.4562546]
[1752459586893,13.42399129,163.53,163.51,3.6]
[1752459588295,5.15099129,163.53,163.51,3.6]
[1752459588498,7.31099129,163.53,163.51,3.6]
[1752459589797,13.42409129,163.53,163.51,3.6]
[1752459591598,2.16,163.52,163.51,3.6]
[1752459592097,7.31099129,163.52,163.51,3.6]
[1752459596399,5.15099129,163.52,163.51,3.6]
[1752459598005,11.26429129,163.52,163.51,3.6]
[1752459598803,13.42429129,163.52,163.51,3.6]
[1752459600206,8.2737,163.51,163.5,3.63901409]
[1752459600505,7.31577206,163.51,163.5,3.63901409]
[1752459600699,5.15577206,163.51,163.5,3.63901409]
[1752459603598,7.30577206,163.51,163.5,0.03901409]
[1752459603805,1.89724051,163.51,163.45,1.89724051]
[1752459604101,5.15748228,163.48,163.47,1.89724051]
[1752459604302,5.15748228,163.49,163.47,5.38724051]
[1752459604506,5.15748228,163.49,163.39,528.34]
[1752459604507,5.15748228,163.49,163.48,3.49]
[1752459604802,5.15748228,163.49,163.48,5.38724051]
[1752459605007,5.15748228,163.5,163.48,5.38724051]
[1752459605203,5.15748228,163.5,163.49,3.49]
[1752459605606,7.30748228,163.51,163.49,3.49]
[1752459606007,5.15748228,163.5,163.49,3.49]
[1752459606612,5.15748228,163.5,163.49,5.38724051]
[1752459607500,5.15748228,163.51,163.5,3.49]
[1752459613803,5.15748228,163.51,163.5,11.49942845]
[1752459614013,6.86988924,163.55,163.51,3.49]
[1752459614211,6.86988924,163.55,163.54,5.38426079]
[1752459614411,6.86988924,163.55,163.54,11.49676079]
[1752459614612,6.86988924,163.55,163.54,5.38426079]
[1752459615111,10.20988924,163.55,163.54,5.38426079]
[1752459615507,3.34,163.56,163.54,1.89426079]
[1752459615707,3.34,163.56,163.48,5.07520312]
[1752459615708,3.34,163.56,163.55,5.38426079]
[1752459616113,3.34,163.56,163.55,11.63962175]
[1752459617312,3.34,163.56,163.54,5.38426079]
[1752459617514,1.89426079,163.58,163.55,3.49]
[1752459617515,3.34,163.57,163.55,3.49]
[1752459618510,3.34,163.56,163.54,1.89426079]
[1752459618910,6.113,163.53,163.52,3.49]
[1752459619214,3.34,163.52,163.51,5.38426079]
[1752459620115,3.34,163.52,163.51,3.49]
[1752459620315,3.34,163.52,163.51,5.38426079]
[1752459621314,1.89426079,163.56,163.5,6.1139]
[1752459621511,3.34,163.53,163.52,3.49]
[1752459621710,3.34,163.54,163.52,1.89426079]
[1752459621919,3.34,163.54,163.53,5.38426079]
[1752459624614,3.34,163.58,163.54,3.49]
[1752459624808,3.34,163.58,163.54,5.38426079]
[1752459625008,6.1115,163.57,163.54,5.38426079]
[1752459625213,3.34,163.56,163.55,3.49]
[1752459625922,9.4518,163.56,163.55,3.49]
[1752459626321,3.34,163.55,163.53,3.49]
[1752459626518,3.34,163.55,163.52,5.42285197]
[1752459626921,9.4524,163.55,163.53,3.49]
[1752459627218,3.34,163.54,163.53,3.49]
[1752459628620,6.1119,163.56,163.53,3.49]
[1752459629123,3.34,163.54,163.53,3.49]
[1752459630319,6.1119,163.56,163.53,3.49]
[1752459630525,3.38,163.56,163.53,3.49]
[1752459631123,3.38,163.56,163.54,3.53]
[1752459632427,3.38,163.55,163.54,3.53]
[1752459634328,3.38,163.55,163.53,3.53]
[1752459635530,3.38,163.55,163.52,3.56859118]
[1752459635732,6.1128,163.54,163.52,3.56859118]
[1752459635931,3.38,163.53,163.52,3.56859118]
[1752459637825,3.38,163.53,163.52,0.03859118]
[1752459638622,3.38,163.53,163.52,3.56859118]
[1752459639633,3.38,163.53,163.52,9.684692]
[1752459641237,9.4929,163.53,163.52,9.684692]
[1752459641939,9.4929,163.53,163.52,6.154692]
[1752459642734,9.4929,163.53,163.52,9.684692]
[1752459644838,3.38,163.53,163.52,9.684692]
[1752459647836,3.38,163.53,163.52,9.69307657]
[1752459649445,3.38,163.53,163.52,6.16307657]
[1752459649944,3.38,163.53,163.52,9.69307657]
[1752459650945,3.38,163.53,163.52,3.56859118]
[1752459651242,3.38,163.53,163.52,9.69789635]
[1752459651646,3.38,163.53,163.52,3.56859118]
[1752459651847,3.38,163.53,163.52,9.69837374]
[1752459654344,3.38,163.54,163.53,3.53]
[1752459654547,3.38,163.54,163.53,11.55527553]
[1752459654742,10.24988924,163.57,163.54,3.53]
[1752459654946,3.38,163.57,163.56,5.42549297]
[1752459655250,3.38,163.57,163.56,11.55527553]
[1752459656038,11.38689297,163.57,163.56,6.12978256]
[1752459656243,11.38689297,163.57,163.54,3.53]
[1752459656244,1.89549297,163.57,163.54,3.53]
[1752459656443,3.38,163.55,163.54,3.53]
[1752459656649,3.38,163.56,163.54,3.53]
[1752459657149,3.38,163.56,163.55,6.12984565]
[1752459657349,3.38,163.56,163.55,9.65984565]
[1752459659048,3.38,163.56,163.55,9.66088393]
[1752459659750,3.38,163.56,163.55,9.66075537]
[1752459662445,3.47,163.58,163.56,3.54]
[1752459662641,3.47,163.58,163.57,6.13075537]
[1752459663852,9.5812,163.58,163.57,6.13075537]
[1752459664050,9.5812,163.58,163.57,6.13303077]
[1752459666853,6.1112,163.58,163.57,6.13324701]
[1752459667541,9.5812,163.58,163.57,6.13324701]
[1752459670652,3.47,163.58,163.57,6.13324701]
[1752459671548,3.47,163.58,163.57,9.67324701]
[1752459672053,3.47,163.58,163.57,6.13324701]
[1752459672255,3.47,163.58,163.57,9.67324701]
[1752459673761,9.5811,163.58,163.57,9.67324701]
[1752459674058,8.61395919,163.58,163.57,9.67324701]
[1752459674857,3.47,163.67,163.58,3.54]
[1752459675159,3.47,163.66,163.62,2.9605875]
[1752459675352,3.47,163.66,163.61,2.95727485]
[1752459675552,3.47,163.65,163.63,2.95648777]
[1752459676151,3.47,163.67,163.55,5.06497002]
[1752459676450,3.47,163.67,163.63,2.95648777]
[1752459676958,3.47,163.66,163.63,2.95648777]
[1752459677158,2.95648777,163.71,163.63,2.95648777]
[1752459677354,3.47,163.65,163.63,2.95648777]
[1752459678657,3.47,163.64,163.63,2.95648777]
[1752459679355,3.47,163.64,163.63,9.19472898]
[1752459680066,3.47,163.73,163.63,9.19472898]
[1752459680359,3.47,163.71,163.65,2.95648777]
[1752459680554,3.47,163.71,163.67,2.95648777]
[1752459680760,3.47,163.7,163.68,6.23824121]
[1752459681064,3.47,163.7,163.69,6.23824121]
[1752459682461,528.16,163.74,163.69,9.19472898]
[1752459682664,3.47,163.72,163.7,6.23824121]
[1752459682963,3.47,163.72,163.71,6.23824121]
[1752459684363,6.1058,163.72,163.69,2.95648777]
[1752459684564,6.1058,163.72,163.7,6.20590138]
[1752459684761,6.1057,163.73,163.71,6.20590138]
[1752459684961,6.1057,163.73,163.69,2.95648777]
[1752459685264,3.47,163.72,163.7,6.2051599]
[1752459685466,3.47,163.72,163.71,6.2051599]
[1752459691270,3.47,163.73,163.71,9.16164767]
[1752459691470,3.47,163.73,163.72,6.2051599]
[1752459693169,3.47,163.73,163.72,6.17610936]
[1752459693563,6.1048,163.75,163.72,6.1765044]
[1752459693768,3.47,163.78,163.73,9.13299217]
[1752459693966,3.47,163.78,163.74,6.1765044]
[1752459694165,3.47,163.78,163.73,2.95648777]
[1752459694166,3.47,163.78,163.75,6.1765044]
[1752459694368,3.47,163.77,163.76,6.1765044]
[1752459694669,3.47,163.8,163.76,6.1765044]
[1752459694872,3.47,163.78,163.77,6.1765044]
[1752459701970,3.47,163.78,163.77,6.16004742]
[1752459702265,3.47,163.78,163.74,2.95648777]
[1752459702471,3.47,163.78,163.75,6.15725148]
[1752459702666,3.47,163.78,163.76,6.15725148]
[1752459702866,3.47,163.78,163.77,6.15725148]
[1752459703869,9.5736,163.78,163.77,6.15725148]
[1752459704170,3.47,163.78,163.77,6.15725148]
[1752459704768,9.5736,163.78,163.77,6.15725148]
[1752459706273,3.47,163.78,163.77,6.15725148]
[1752459708774,3.47,163.79,163.77,6.15725148]
[1752459709077,3.47,163.79,163.78,6.15725148]
[1752459710580,3.47,163.79,163.78,6.19155992]
[1752459710771,9.72177432,163.81,163.78,9.14804769]
[1752459710977,9.72177432,163.81,163.79,6.19155992]
[1752459711283,9.72177432,163.81,163.8,6.19155992]
[1752459712479,6.25177432,163.81,163.8,6.19155992]
[1752459714181,9.72177432,163.81,163.8,6.19155992]
[1752459715274,6.25177432,163.81,163.8,9.14804769]
[1752459716280,6.25177432,163.81,163.8,2.95648777]
[1752459716578,6.25177432,163.81,163.8,15.25610357]
[1752459716984,9.5712,163.85,163.81,6.1023]
[1752459717179,9.5712,163.85,163.82,6.1968158]
[1752459717384,9.5712,163.85,163.83,9.15330357]
[1752459717585,9.5712,163.85,163.84,6.1968158]
[1752459719380,9.5712,163.85,163.84,6.20506223]
[1752459719786,9.5712,163.85,163.84,6.20347473]
[1752459720488,3.47,163.85,163.84,6.20347473]
[1752459721487,3.47,163.85,163.84,6.21462824]
[1752459721884,3.36,163.88,163.84,6.21462824]
[1752459722091,3.36,163.88,163.85,6.21462824]
[1752459722292,3.36,163.88,163.86,6.21462824]
[1752459722486,9.4599,163.88,163.87,6.21462824]
[1752459724084,9.4599,163.88,163.85,2.95648777]
[1752459724290,9.4602,163.87,163.86,6.20639471]
[1752459725695,3.36,163.87,163.86,6.20639471]
[1752459726692,9.4602,163.87,163.86,6.20639471]
[1752459727089,6.1002,163.87,163.82,2.95648777]
[1752459727290,9.4607,163.86,163.83,6.20799947]
[1752459727593,3.36,163.85,163.84,6.20695674]
[1752459727991,3.36,163.85,163.84,6.20695673]
[1752459728699,2.95648777,163.91,163.84,6.20695673]
[1752459728700,6.1001,163.88,163.84,6.20695673]
[1752459728890,3.36,163.87,163.85,6.20695673]
[1752459729086,3.36,163.87,163.86,6.20695673]
[1752459731907,9.4588,163.91,163.86,12.30755673]
[1752459732101,3.36,163.92,163.88,2.95648777]
[1752459732307,2.95648777,163.96,163.89,6.20695673]
[1752459732506,3.36,163.91,163.9,6.20695673]
[1752459732804,3.36,163.91,163.9,6.20223215]
[1752459734197,9.4588,163.91,163.9,6.20223215]
[1752459734910,3.36,163.91,163.82,2.95648777]
[1752459735212,3.36,163.89,163.82,9.05848777]
[1752459737312,3.36,163.89,163.82,6.102]
[1752459737504,3.36,163.87,163.82,6.102]
[1752459737809,3.36,163.87,163.82,2.95648777]
[1752459738015,3.36,163.83,163.74,527.42]
[1752459738309,3.36,163.82,163.78,2.95648777]
[1752459739000,3.36,163.82,163.79,6.103]
[1752459740206,3.36,163.82,163.8,2.95648777]
[1752459740513,9.4622,163.82,163.8,2.95648777]
[1752459740713,3.36,163.82,163.8,2.95648777]
[1752459740914,3.36,163.84,163.77,2.95648777]
[1752459741216,3.36,163.81,163.77,9.06028777]
[1752459741408,3.36,163.81,163.79,2.95648777]
[1752459742306,3.36,163.82,163.79,2.95648777]
[1752459743203,3.36,163.82,163.79,9.05948777]
[1752459743409,3.36,163.84,163.81,2.95648777]
[1752459743608,3.36,163.84,163.76,2.95648777]
[1752459743609,3.36,163.83,163.8,6.1027]
[1752459743805,9.4617,163.83,163.81,2.95648777]
[1752459744108,3.36,163.83,163.79,2.95648777]
[1752459744614,3.36,163.81,163.79,2.95648777]
[1752459744816,3.36,163.81,163.76,2.95648777]
[1752459745012,3.36,163.77,163.76,2.95648777]
[1752459745215,3.36,163.76,163.74,530.37648777]
[1752459745516,3.36,163.78,163.74,530.37648777]
[1752459745817,3.36,163.78,163.76,2.95648777]
[1752459746205,3.36,163.77,163.74,533.5251]
[1752459746416,3.36,163.77,163.75,2.95648777]
[1752459746612,2.95648777,163.8,163.73,2.95648777]
[1752459746811,3.36,163.79,163.74,6.11206579]
[1752459747121,9.4643,163.76,163.7,2.95648777]
[1752459747318,3.36,163.75,163.7,2.95648777]
[1752459748018,3.36,163.75,163.69,5.06497002]
[1752459748019,3.36,163.75,163.72,2.95648777]
[1752459748617,3.36,163.8,163.74,2.95648777]
[1752459749121,6.1035,163.79,163.74,9.06128777]
[1752459749421,3.36,163.78,163.74,9.06128777]
[1752459749914,3.36,163.78,163.75,6.1046]
[1752459750522,3.36,163.78,163.76,2.95648777]
[1752459751218,6.103,163.8,163.76,9.06078777]
[1752459751517,6.1033,163.79,163.76,2.95648777]
[1752459751820,3.55,163.78,163.76,2.95648777]
[1752459753610,3.55,163.78,163.71,2.95648777]
[1752459754421,3.55,163.75,163.71,9.06238777]
[1752459754726,3.55,163.75,163.66,704.64]
[1752459755025,3.55,163.74,163.7,2.95648777]
[1752459755620,3.55,163.74,163.71,6.1061]
[1752459755824,3.55,163.74,163.7,2.95648777]
[1752459756723,3.55,163.74,163.71,6.1059]
[1752459756926,3.55,163.74,163.7,2.95648777]
[1752459757125,3.55,163.74,163.71,6.1061]
[1752459757320,3.55,163.74,163.7,2.95648777]
[1752459757824,3.55,163.74,163.69,2.95648777]
[1752459759129,9.6551,163.74,163.69,9.06328777]
[1752459759425,3.55,163.73,163.69,9.06328777]
[1752459759827,3.55,163.72,163.69,2.95648777]
[1752459761230,3.55,163.72,163.67,2.95648777]
[1752459761729,3.55,163.71,163.67,2.95648777]
[1752459763126,3.55,163.71,163.68,6.1073]
[1752459763522,3.55,163.71,163.69,2.95648777]
[1752459763932,3.55,163.71,163.65,177.56]
[1752459764122,3.55,163.71,163.69,2.95648777]
[1752459764326,3.55,163.71,163.68,2.95648777]
[1752459764727,6.50648777,163.78,163.7,2.95648777]
[1752459764929,2.95648777,163.78,163.7,2.95648777]
[1752459765234,3.55,163.77,163.7,2.95648777]
[1752459765435,2.95648777,163.76,163.7,2.95648777]
[1752459765631,3.55,163.75,163.7,2.95648777]
[1752459765934,3.55,163.73,163.7,2.95648777]
[1752459766126,3.55,163.73,163.65,177.56]
[1752459766323,3.55,163.73,163.69,2.95648777]
[1752459767633,3.55,163.73,163.69,9.06348777]
[1752459767834,3.55,163.73,163.71,2.95648777]
[1752459772829,3.55,163.79,163.71,2.95648777]
[1752459773134,3.55,163.79,163.75,2.95648777]
[1752459773534,3.55,163.77,163.75,2.95648777]
[1752459774333,3.55,163.78,163.75,2.95648777]
[1752459774532,3.55,163.78,163.77,2.95648777]
[1752459775032,3.55,163.78,163.75,2.95648777]
[1752459779533,3.55,163.77,163.75,2.95648777]
[1752459780337,2.95648777,163.83,163.75,2.95648777]
[1752459780536,3.4,163.76,163.75,2.95648777]
[1752459781540,3.4,163.76,163.69,177.58]
[1752459781840,3.4,163.76,163.74,2.95648777]
[1752459783434,5.10418493,163.84,163.75,2.95648777]
[1752459783640,6.1,163.88,163.83,6.1015]
[1752459783937,5.10418493,163.91,163.85,2.95648777]
[1752459784136,5.10418493,163.91,163.82,2.95648777]
[1752459784338,3.4,163.89,163.82,2.95648777]
[1752459784836,3.4,163.85,163.75,177.66]
[1752459785034,3.4,163.85,163.78,2.95648777]
[1752459785433,3.4,163.81,163.78,2.95648777]
[1752459785844,3.4,163.86,163.8,2.95648777]
[1752459786545,3.4,163.83,163.8,2.95648777]
[1752459786941,3.4,163.83,163.78,2.95648777]
[1752459787641,3.4,163.82,163.78,2.95648777]
[1752459788537,6.35648777,163.82,163.76,2.95648777]
[1752459788734,3.4,163.81,163.76,2.95648777]
[1752459788944,6.1037,163.78,163.74,2.95648777]
[1752459789147,3.4,163.77,163.74,2.95648777]
[1752459792047,3.4,163.83,163.76,2.95648777]
[1752459792547,3.4,163.8,163.78,2.95648777]
[1752459792943,18.36,163.86,163.78,2.95648777]
[1752459792944,3.4,163.84,163.78,2.95648777]
[1752459793150,3.4,163.82,163.78,2.95648777]
[1752459793437,3.4,163.82,163.8,2.95648777]
[1752459793637,3.4,163.82,163.78,2.95648777]
[1752459794245,3.4,163.81,163.78,2.95648777]
[1752459795143,6.102,163.83,163.78,2.95648777]
[1752459795347,3.4,163.81,163.8,2.95648777]
[1752459796145,3.4,163.83,163.79,6.1032]
[1752459796347,6.101,163.86,163.8,2.95648777]
[1752459796547,3.4,163.82,163.8,2.95648777]
[1752459796749,3.4,163.87,163.8,2.95648777]
[1752459797049,3.4,163.87,163.85,2.95648777]
[1752459797252,3.4,163.87,163.76,2.95648777]
[1752459797440,3.4,163.87,163.84,2.95648777]
[1752459798152,5.10418493,163.91,163.86,2.95648777]
[1752459798445,13.73977849,164.0,163.86,2.95648777]
[1752459798446,3.4,163.89,163.86,2.95648777]
[1752459798645,6.099,163.91,163.86,2.95648777]
[1752459798852,3.4,163.93,163.86,2.95648777]
[1752459799053,9.4984,163.93,163.87,2.95648777]
[1752459799256,3.4,163.93,163.77,5.01227461]
[1752459799446,3.4,163.93,163.86,2.95648777]
[1752459799752,3.4,163.9,163.86,2.95648777]
[1752459800141,3.4,163.9,163.76,7.96876238]
[1752459800347,3.4,163.9,163.86,2.95648777]
[1752459801447,3.4,163.9,163.84,2.95648777]
[1752459801757,3.4,163.89,163.76,2.95648777]
[1752459801947,3.4,163.89,163.83,2.95648777]
[1752459802145,3.4,163.89,163.76,2.95648777]
[1752459802547,3.4,163.89,163.84,2.95648777]
[1752459802748,3.4,163.89,163.82,2.95648777]
[1752459803154,2.95648777,163.88,163.76,2.95648777]
[1752459803452,3.4,163.85,163.84,2.95648777]
[1752459803847,3.4,163.86,163.84,2.95648777]
[1752459804048,3.4,163.86,163.76,2.95648777]
[1752459804253,3.4,163.85,163.82,6.102]
[1752459804555,3.4,163.85,163.81,2.95648777]
[1752459804751,3.4,163.85,163.8,2.95648777]
[1752459805152,3.4,163.85,163.76,2.95648777]
[1752459805153,6.35648777,163.85,163.78,2.95648777]
[1752459805352,6.35648777,163.85,163.77,2.95648777]
[1752459805353,3.4,163.84,163.77,2.95648777]
[1752459805649,3.4,163.82,163.77,2.95648777]
[1752459805848,3.4,163.82,163.76,9.06078777]
[1752459806044,3.4,163.82,163.76,2.95648777]
[1752459806444,3.4,163.84,163.78,2.95648777]
[1752459807658,3.4,163.84,163.78,6.1035]
[1752459807958,3.4,163.84,163.78,9.05998777]
[1752459808152,3.4,163.84,163.8,9.05928777]
[1752459808353,3.4,163.84,163.8,2.95648777]
[1752459808659,3.4,163.84,163.8,9.05908777]
[1752459808858,3.4,163.86,163.8,2.95648777]
[1752459809156,3.4,163.86,163.82,9.05858777]
[1752459809355,3.4,163.86,163.82,2.95648777]
[1752459809761,3.4,163.86,163.82,9.05828777]
[1752459809955,3.4,163.86,163.76,2.95648777]
[1752459810255,3.36,163.91,163.85,2.95648777]
[1752459810467,5.10418493,163.95,163.84,2.95648777]
[1752459810662,8.46418493,163.96,163.91,2.95648777]
[1752459810958,3.36,163.97,163.9,2.95648777]
[1752459811352,3.36,163.97,163.78,67.01227461]
[1752459811559,3.36,163.97,163.84,2.95648777]
[1752459811762,3.36,163.99,163.94,2.95648777]
[1752459812253,3.36,163.99,163.92,2.95648777]
[1752459812654,3.36,163.98,163.92,2.95648777]
[1752459812862,3.36,163.98,163.94,2.95648777]
[1752459813057,181.2,164.06,163.94,2.95648777]
[1752459813058,3.36,163.97,163.94,9.05398777]
[1752459813355,3.36,163.96,163.94,2.95648777]
[1752459813559,3.36,164.05,163.94,2.95648777]
[1752459813749,5.10418493,164.05,163.96,2.95648777]
[1752459813955,3.36,164.03,163.96,2.95648777]
[1752459814151,5.10418493,164.05,163.96,2.95648777]
[1752459814356,3.36,164.02,163.96,2.95648777]
[1752459814652,3.36,164.02,163.96,9.05328777]
[1752459814859,5.10418493,164.05,163.98,2.95648777]
[1752459815060,3.36,164.04,163.98,2.95648777]
[1752459815463,3.36,164.04,163.96,2.95648777]
[1752459815957,3.36,164.02,163.96,9.05308777]
[1752459816167,3.36,164.0,163.87,183.18]
[1752459816461,2.95648777,164.0,163.81,527.18]
[1752459816652,2.95648777,163.97,163.81,527.18]
[1752459816857,3.36,163.96,163.88,2.95648777]
[1752459817052,3.36,163.95,163.88,2.95648777]
[1752459817356,3.36,163.91,163.83,2.95648777]
[1752459817663,3.36,163.89,163.81,527.18]
[1752459817859,3.36,163.89,163.82,2.95648777]
[1752459818052,6.1,163.88,163.81,9.05868777]
[1752459818256,3.36,163.87,163.81,2.95648777]
[1752459818456,3.36,163.87,163.79,219.26868893]
[1752459818656,9.4606,163.87,163.8,2.95648777]
[1752459818859,3.36,163.86,163.8,2.95648777]
[1752459819061,3.36,163.86,163.79,219.26868893]
[1752459819256,3.36,163.85,163.82,4.91785431]
[1752459819461,3.36,163.89,163.8,4.91785431]
[1752459819664,3.36,163.84,163.78,4.91785431]
[1752459820662,4.91785431,163.9,163.8,4.91785431]
[1752459820970,3.36,163.82,163.8,4.91785431]
[1752459821163,3.36,163.91,163.8,4.91785431]
[1752459821370,3.36,163.91,163.82,4.91785431]
[1752459822157,3.36,163.91,163.84,4.91785431]
[1752459822359,3.36,163.89,163.84,4.91785431]
[1752459823264,3.36,163.88,163.8,4.91785431]
[1752459823465,5.10418493,163.95,163.88,4.91785431]
[1752459823671,3.36,163.91,163.9,4.91785431]
[1752459824470,3.36,163.97,163.89,4.91785431]
[1752459825068,3.36,163.97,163.91,4.91785431]
[1752459825267,3.36,163.97,163.93,4.91785431]
[1752459825466,3.36,163.97,163.89,4.91785431]
[1752459825669,3.36,163.93,163.89,4.91785431]
[1752459826666,3.36,163.93,163.87,6.1002]
[1752459826866,3.36,163.93,163.9,4.91785431]
[1752459827473,3.36,163.92,163.9,4.91785431]
[1752459827772,3.36,163.96,163.9,4.91785431]
[1752459828469,3.36,163.95,163.9,4.91785431]
[1752459828769,3.36,163.95,163.9,11.01685431]
[1752459828971,3.36,163.95,163.83,712.76]
[1752459828972,3.36,163.99,163.94,4.91785431]
[1752459829571,532.15383261,164.01,163.94,4.91785431]
[1752459829572,3.36,164.0,163.94,4.91785431]
[1752459829769,3.36,164.0,163.83,712.76]
[1752459829965,3.36,164.0,163.93,4.91785431]
[1752459830867,6.0967,163.97,163.93,4.91785431]
[1752459831064,3.36,163.96,163.93,4.91785431]
[1752459832068,3.36,164.01,163.93,4.91785431]
[1752459832272,3.36,164.01,163.95,4.90816081]
[1752459832465,3.36,164.01,163.96,6.06068957]
[1752459832770,3.36,164.01,163.95,4.90816081]
[1752459832771,3.36,164.01,163.97,6.05865477]
[1752459832972,4.90816081,164.06,163.98,12.18724412]
[1752459833170,6.0949,164.02,163.99,12.18724412]
[1752459833369,3.36,164.01,164.0,12.18724412]
[1752459834477,9.4551,164.01,164.0,12.18724412]
[1752459835578,9.4551,164.01,164.0,6.05865477]
[1752459835972,3.36,163.99,163.95,4.90785129]
[1752459836177,3.36,163.98,163.95,4.90785129]
[1752459836382,3.36,163.98,163.96,6.05630451]
[1752459836567,3.36,163.97,163.95,4.90785129]
[1752459837376,6.0951,164.01,163.95,4.90785129]
[1752459837676,3.36,163.99,163.95,4.90785129]
[1752459838078,3.36,163.99,163.95,11.00495129]
[1752459838279,3.36,163.99,163.95,4.90785129]
[1752459838471,4.90785129,164.06,163.95,4.90785129]
[1752459838676,1.06112119,164.1,163.99,4.90716959]
[1752459838677,3.36,164.02,163.99,4.90716959]
[1752459838869,3.36,164.01,164.0,12.19910328]
[1752459840575,3.35,164.01,164.0,12.19910328]
[1752459840776,3.35,164.01,163.92,4.90631755]
[1752459841481,3.35,164.01,163.95,4.90850779]
[1752459841778,6.0958,164.0,163.95,4.90850779]
[1752459841977,4.90850779,164.04,163.95,4.90850779]
[1752459841978,3.35,163.98,163.95,4.90850779]
[1752459842378,3.35,163.98,163.95,11.00560779]
[1752459843470,6.0954,164.01,163.95,11.00560779]
[1752459843674,3.35,163.97,163.95,11.00560779]
[1752459843975,6.0954,164.01,163.96,6.0969]
[1752459844174,3.35,163.98,163.96,6.0969]
[1752459844480,3.35,163.99,163.95,4.90850779]
[1752459845376,6.0952,164.01,163.95,4.90850779]
[1752459845572,3.35,164.0,163.95,4.90850779]
[1752459846172,3.35,163.99,163.95,4.90850779]
[1752459846377,3.35,163.99,163.87,186.5]
[1752459846577,3.35,163.99,163.92,11.00670779]
[1752459846578,6.0964,163.98,163.92,11.00670779]
[1752459846781,3.35,163.97,163.92,11.00670779]
[1752459846978,3.35,163.97,163.92,9.04465565]
[1752459847173,3.35,163.97,163.93,6.0979]
[1752459847380,3.35,163.97,163.87,186.5]
[1752459847680,3.35,163.97,163.93,2.94645565]
[1752459848180,3.35,163.97,163.87,186.5]